[Event "45th FIDE Olympiad 2024"]
[Site "Budapest"]
[Date "2024.09.13"]
[Round "3.61"]
[White "Supi, Luis Paulo"]
[Black "Martirosyan, Haik M."]
[Result "1/2-1/2"]
[ECO "A20"]
[WhiteElo "2570"]
[BlackElo "2667"]
[Annotator "TA"]
[PlyCount "64"]
[EventDate "2024.09.05"]
[EventType "team-tourn"]
[EventCountry "HUN"]
[SourceTitle "playchess.com"]
[Source "ChessBase"]
[SourceQuality "1"]
[WhiteTeam "Brazil"]
[BlackTeam "Armenia"]
[WhiteTeamCountry "BRA"]
[BlackTeamCountry "ARM"]
[TimeControl "40/5400+30:1800+30"]

{[%evp 9,64,0,0,0,0,0,0,0,0,-15,0,0,22,-22,-11,-27,-20,-20,-22,-24,-24,-75,-104,-61,0,26,14,0,16,26,20,18,23,21,24,13,13,0,0,0,0,0,0,0,15,0,0,0,0,0,0,0,0,-10,0,0,0]} 1. c4 {[%emt 0:00:02]} e5 {[%emt 0:01:01]} 2. d3 {[%emt 0:03:25]} Nc6 {[%emt 0:01:21]} 3. Nf3 {[%emt 0:00:30]} Nf6 {[%emt 0:00:18]} 4. a3 {[%emt 0:00:18]} d5 {[%emt 0:00:38]} 5. cxd5 {[%emt 0:00:09]} Nxd5 {[%emt 0:00:05]} 6. e4 {[%emt 0:00:27]} Nb6 {[%emt 0:00:47]} 7. Be2 {[%emt 0:00:42]} Be7 {[%emt 0:00:07]} 8. Be3 {[%emt 0:00:42]} O-O {[%emt 0:00:25]} 9. Nbd2 {[%emt 0:00:17]} a5 {[%emt 0:02:10]} 10. Rc1 {[%emt 0:01:24]} Be6 {[%emt 0:11:51]} 11. h4 {[%emt 0:05:13][%cal Oc1c6]} (11. Rxc6 $5 bxc6 12. Nxe5 $11) 11... a4 {[%emt 0:04:01]} 12. Ng5 {[%emt 0:10:52]} Bc8 {[%emt 0:02:33]} 13. g3 {[%emt 0:07:11]} Nd4 {[%emt 0:12:48]} 14. Bg4 {[%emt 0:04:27]} f5 {[%emt 0:02:21]} (14... Bxg4 {simplifies} 15. Qxg4 Nc6 16. Qe2 Qd7) 15. Bh3 {[%emt 0:13:54]} (15. Bxd4 $11 fxg4 16. Bxe5) 15... h6 $17 {[%emt 0:04:18]} 16. Qh5 {[%emt 0:04:03]} Qe8 {[%emt 0:13:27]} (16... hxg5 $2 {loses.} 17. hxg5 Bxg5 18. Bxg5 $18) ({Black should try} 16... Ra5 $1 $15 17. Ngf3 Rb5 18. Nxd4 exd4) 17. Qxe8 $11 {[%emt 0:01:35]} Rxe8 {[%emt 0:00:01]} 18. Ngf3 {[%emt 0:02:03]} Nxf3+ {[%emt 0:01:47]} 19. Nxf3 {[%emt 0:00:23]} fxe4 {[%emt 0:00:04]} 20. dxe4 {[%emt 0:07:29]} Bxh3 {[%emt 0:00:59]} 21. Rxh3 {[%emt 0:00:21]} Bd6 {[%emt 0:00:59]} 22. h5 {[%emt 0:07:48]} Nd7 {[%emt 0:01:27] The position is equal.} 23. g4 {[%emt 0:01:07]} Nf6 {[%emt 0:10:46]} 24. g5 {[%emt 0:01:18]} hxg5 {[%emt 0:01:31]} 25. Nxg5 {[%emt 0:00:39]} Kf8 {[%emt 0:01:59]} 26. Bc5 {[%emt 0:07:59]} Rac8 {[%emt 0:02:39]} 27. Bxd6+ {[%emt 0:06:37]} cxd6 {[%emt 0:00:04]} 28. Rhc3 {[%emt 0:00:29]} Rxc3 {[%emt 0:05:57]} 29. Rxc3 {[%emt 0:00:04]} Nxh5 {[%emt 0:01:22]} 30. Rc7 {[%emt 0:00:09]} Re7 {[%emt 0:01:00]} 31. Rc8+ {[%emt 0:00:16]} Re8 {[%emt 0:00:04]} 32. Rc7 {[%emt 0:00:05]} Re7 {[%emt 0:00:39] Weighted Error Value: White=0.09 (flawless) /Black=0.07 (flawless) .  Mistake:       	White=1     	Black=1      Inaccurate:     	White=1     	---        OK:         	White=9     	Black=14     Best:        	White=1     	Black=1} 1/2-1/2

[Event "45th FIDE Olympiad 2024"]
[Site "Budapest"]
[Date "2024.09.13"]
[Round "3.61"]
[White "Fancy, Stuart"]
[Black "Hamperl, Fred"]
[Result "1-0"]
[ECO "D01"]
[WhiteElo "1921"]
[BlackElo "1977"]
[Annotator "NA RC"]
[PlyCount "109"]
[EventDate "2024.09.05"]
[EventType "team-tourn"]
[EventCountry "HUN"]
[SourceTitle "playchess.com"]
[Source "ChessBase"]
[SourceQuality "1"]
[WhiteTeam "Papua New Guinea"]
[BlackTeam "Guernsey"]
[WhiteTeamCountry "PNG"]
[TimeControl "40/5400+30:1800+30"]

1. Nc3 d5 2. d4 Nf6 3. Bg5 Nbd7 4. Nf3 h6 5. Bf4 a6 6. g3 e6 7. Bg2 c5 8. dxc5 Bxc5 9. O-O O-O 10. a3 b5 11. b3 Bb7 12. Bc1 Rc8 13. Bb2 Qc7 14. e3 b4 15. axb4 Bxb4 16. Na2 Be7 17. Nd4 Ne4 18. Qe2 Rfe8 19. Rfc1 Nd6 20. Nf3 Bf6 21. Bxf6 Nxf6 22. Ne5 Nfe4 23. f3 Nc3 24. Nxc3 Qxc3 25. Nd3 e5 26. Qe1 Qxe1+ 27. Nxe1 Rc3 28. Bf1 Ra8 29. Kf2 e4 30. f4 Nb5 31. Bxb5 axb5 32. Rxa8+ Bxa8 33. Ra1 Rc8 34. Ra7 g5 35. Ke2 b4 36. fxg5 hxg5 37. h4 gxh4 38. gxh4 Bc6 39. Ng2 Rd8 40. Nf4 Bb5+ 41. Kd2 d4 42. Rb7 dxe3+ 43. Kxe3 Bc6 44. Rxb4 Kg7 45. Rb6 Rc8 46. c4 f5 47. b4 Be8 48. c5 Ra8 49. c6 Ra3+ 50. Kd4 Rf3 51. c7 Bd7 52. Rd6 Bc8 53. Rd8 Rxf4 54. Rxc8 e3+ 55. Kxe3 1-0

[Event "45th FIDE Olympiad 2024"]
[Site "Budapest"]
[Date "2024.09.13"]
[Round "3.62"]
[White "Sargsyan, Shant"]
[Black "Fier, Alexandr"]
[Result "1-0"]
[ECO "B47"]
[WhiteElo "2649"]
[BlackElo "2551"]
[Annotator "TA"]
[PlyCount "121"]
[EventDate "2024.09.05"]
[EventType "team-tourn"]
[EventCountry "HUN"]
[SourceTitle "playchess.com"]
[Source "ChessBase"]
[SourceQuality "1"]
[WhiteTeam "Armenia"]
[BlackTeam "Brazil"]
[WhiteTeamCountry "ARM"]
[BlackTeamCountry "BRA"]
[TimeControl "40/5400+30:1800+30"]

{[%evp 34,121,101,104,103,79,85,33,104,103,138,135,149,164,170,177,179,119,119,131,126,127,125,112,114,101,135,125,115,116,113,135,189,188,196,198,204,201,192,199,215,212,205,215,228,231,214,206,243,217,220,226,242,228,241,241,306,264,280,281,331,350,508,503,494,496,521,528,664,655,754,635,866,801,862,803,898,821,29972,29973,29983,29984,29984,29985,29993,29988,29995,29994,29996,29997]} 1. e4 {[%emt 0:01:05]} c5 {[%emt 0:00:05]} 2. Nf3 {[%emt 0:00:20]} e6 {[%emt 0:00:05]} 3. d4 {[%emt 0:00:34]} cxd4 {[%emt 0:00:05]} 4. Nxd4 {[%emt 0:00:03]} Nc6 {[%emt 0:00:05]} 5. Nc3 {[%emt 0:00:10]} Qc7 {[%emt 0:03:29]} 6. Ncb5 {[%emt 0:00:06] B47: Sicilian: Taimanov: 5 Nc3 Qc7 6 f4, 6 g3 and 6 Be2.} Qb8 {[%emt 0:00:06]} 7. Bd3 {[%emt 0:00:04]} a6 {[%emt 0:06:13]} 8. Nxc6 {[%emt 0:00:09]} bxc6 {[%emt 0:00:04]} 9. Nd4 {[%emt 0:00:46]} Ne7 {[%emt 0:03:55]} 10. O-O {[%emt 0:02:45]} c5 {[%emt 0:02:10]} 11. Nf3 {[%emt 0:12:18]} Ng6 $146 {[%emt 0:04:12]} ({Predecessor:} 11... Bb7 12. c3 Ng6 13. Rb1 Be7 14. b4 O-O 15. a4 Qc7 16. Re1 d5 17. bxc5 dxe4 18. Rxb7 Qxb7 19. Bxe4 {½-½ Praggnanandhaa,R (2747)-Firouzja,A (2760) Candidates Tournament 2024 (8)}) 12. b3 {[%emt 0:01:40]} Be7 {[%emt 0:04:00]} 13. Bb2 {[%emt 0:01:28]} Bf6 {[%emt 0:01:38]} 14. Bxf6 {[%emt 0:01:49]} gxf6 {[%emt 0:00:04]} 15. Qd2 {[%emt 0:01:03]} Rg8 {[%emt 0:01:26]} 16. Rfe1 {[%emt 0:03:40]} Bb7 {[%emt 0:02:32]} 17. Rad1 {[%emt 0:05:51]} Bc6 {[%emt 0:08:40]} 18. Qe3 {[%emt 0:08:31]} Ne5 {[%emt 0:02:52]} 19. Nxe5 {[%emt 0:07:23]} Qxe5 {[%emt 0:00:48]} 20. g3 {[%emt 0:00:39]} ({White should play} 20. Bf1 $16) 20... a5 {[%emt 0:01:51]} (20... h5 $14) 21. a4 $16 {[%emt 0:00:47]} Ke7 {[%emt 0:15:03]} 22. Bc4 {[%emt 0:04:43]} Bb7 {[%emt 0:00:35]} 23. Bd5 {[%emt 0:05:23]} Bxd5 {[%emt 0:01:58]} 24. Qxc5+ {[%emt 0:00:11]} (24. exd5 Qxe3 25. Rxe3 Rac8 $11) 24... Qd6 {[%emt 0:00:03]} 25. Rxd5 {[%emt 0:03:02]} (25. Qe3 $1 $18) 25... Qxc5 $16 {[%emt 0:01:29]} 26. Rxc5 {[%emt 0:00:02]} Rgc8 {[%emt 0:00:08]} 27. Rxc8 {[%emt 0:00:09]} Rxc8 {[%emt 0:00:03]} 28. Re2 {[%emt 0:00:16]} Rc5 {[%emt 0:00:04]} 29. f4 {[%emt 0:01:49]} Kd6 {[%emt 0:04:43]} 30. Kf2 {[%emt 0:02:04]} Rc3 {[%emt 0:00:03]} 31. Ke1 {[%emt 0:08:45]} Kc6 {[%emt 0:05:00]} 32. e5 {[%emt 0:06:30]} f5 {[%emt 0:02:48] [#]} (32... fxe5 $16 33. Kd2 (33. fxe5 h5 $16) (33. Rxe5 Rxc2 34. Rh5 Rb2 $11) 33... Rf3) 33. Rf2 $1 $18 {[%emt 0:03:24]} d5 {[%emt 0:04:00]} 34. exd6 {[%emt 0:00:51]} Kxd6 {[%emt 0:02:06]} 35. Kd2 {[%emt 0:00:09]} Rc8 {[%emt 0:05:50]} 36. Rf3 {[%emt 0:00:51]} Rg8 {[%emt 0:00:57]} 37. Rd3+ {[%emt 0:02:49]} Kc6 {[%emt 0:00:10]} 38. Kc3 {[%emt 0:02:09]} f6 {[%emt 0:01:53] [#]} 39. Kc4 $1 {[%emt 0:01:40]} Rc8 {[%emt 0:00:09]} 40. c3 {[%emt 0:07:07]} Kb6+ {[%emt 0:00:06]} 41. Kd4 {[%emt 0:30:02]} Ra8 {[%emt 0:34:32]} 42. Re3 {[%emt 0:04:15]} Rd8+ {[%emt 0:00:02]} 43. Kc4 {[%emt 0:00:04]} Rc8+ {[%emt 0:00:02]} 44. Kd3 {[%emt 0:00:05]} Rd8+ {[%emt 0:00:02]} 45. Kc2 {[%emt 0:02:02]} Re8 {[%emt 0:00:05]} 46. Rd3 {[%emt 0:00:00]} Kc6 {[%emt 0:00:00]} 47. b4 {[%emt 0:00:00]} axb4 {[%emt 0:00:00]} (47... e5 $142 48. b5+ (48. bxa5 e4 $18) 48... Kc7) 48. cxb4 $18 {[%emt 0:00:00]} e5 {[%emt 0:00:00]} 49. Rc3+ {[%emt 0:00:00]} Kb7 {[%emt 0:00:00]} 50. a5 {[%emt 0:00:00]} exf4 {[%emt 0:00:00]} 51. gxf4 {[%emt 0:00:00]} Re4 {[%emt 0:00:00]} 52. Kb3 {[%emt 0:00:00]} ({And not} 52. b5 Ra4 $11) 52... Rxf4 {[%emt 0:00:00]} 53. Rh3 {[%emt 0:00:00]} Rf1 {[%emt 0:00:00]} 54. Ka4 {[%emt 0:00:00]} (54. Rxh7+ Kc6 55. Rf7 Rb1+ 56. Kc3 Kd6 57. Rxf6+ Ke7 58. Rxf5 Rh1) 54... Kc6 {[%emt 0:00:00]} 55. Rc3+ {[%emt 0:00:00]} (55. Rxh7 Ra1+ 56. Kb3 Kd6 $16) 55... Kb7 {[%emt 0:00:00]} 56. Kb5 {[%emt 0:00:00]} Re1 {[%emt 0:00:00]} 57. a6+ {[%emt 0:00:00]} Kb8 {[%emt 0:00:00]} 58. Kb6 {[%emt 0:00:00]} Re8 {[%emt 0:00:00]} 59. b5 {[%emt 0:00:00]} f4 {[%emt 0:00:00]} 60. a7+ {[%emt 0:00:00]} Ka8 {[%emt 0:00:00]} 61. Ka6 {[%emt 0:00:00]} 1-0

[Event "45th FIDE Olympiad 2024"]
[Site "Budapest"]
[Date "2024.09.13"]
[Round "3.62"]
[White "Rowe, Peter"]
[Black "McCoy, Tom"]
[Result "0-1"]
[ECO "A43"]
[WhiteElo "1973"]
[BlackElo "1883"]
[Annotator "NA RC"]
[PlyCount "76"]
[EventDate "2024.09.05"]
[EventType "team-tourn"]
[EventCountry "HUN"]
[SourceTitle "playchess.com"]
[Source "ChessBase"]
[SourceQuality "1"]
[WhiteTeam "Guernsey"]
[BlackTeam "Papua New Guinea"]
[BlackTeamCountry "PNG"]
[TimeControl "40/5400+30:1800+30"]

1. d4 e6 2. Nf3 c5 3. c3 cxd4 4. cxd4 Nf6 5. Nc3 Nc6 6. e3 Be7 7. Bd3 a6 8. O-O O-O 9. Re1 d5 10. a3 b5 11. b4 Bb7 12. Bb2 Rc8 13. Qe2 Re8 14. Rad1 Qb6 15. e4 dxe4 16. Nxe4 Red8 17. Nc5 Rd6 18. Ne5 Rcd8 19. Nxb7 Qxb7 20. Qf3 Qa8 21. h3 Rd5 22. Be4 Nxe5 23. dxe5 Nxe4 24. Rxd5 exd5 25. e6 f6 26. Bd4 Qc6 27. Qg4 Qc4 28. Be3 Nc3 29. Qh5 g6 30. Qf3 Qe4 31. Qg3 Qxe6 32. f4 d4 33. f5 Qe5 34. Qf3 dxe3 35. Rxe3 Qd4 36. Kf1 Qd1+ 37. Qxd1 Rxd1+ 38. Kf2 Nd5 0-1

[Event "45th FIDE Olympiad 2024"]
[Site "Budapest"]
[Date "2024.09.13"]
[Round "3.63"]
[White "Quintiliano, Renato R."]
[Black "Sargissian, Gabriel"]
[Result "1/2-1/2"]
[ECO "E05"]
[WhiteElo "2499"]
[BlackElo "2646"]
[Annotator "TA"]
[PlyCount "69"]
[EventDate "2024.09.05"]
[EventType "team-tourn"]
[EventCountry "HUN"]
[SourceTitle "playchess.com"]
[Source "ChessBase"]
[SourceQuality "1"]
[WhiteTeam "Brazil"]
[BlackTeam "Armenia"]
[WhiteTeamCountry "BRA"]
[BlackTeamCountry "ARM"]
[TimeControl "40/5400+30:1800+30"]

{[%evp 21,69,10,10,8,10,0,7,0,0,0,0,0,0,0,0,0,0,0,0,-10,0,0,0,0,1,2,18,0,0,0,31,28,26,34,29,29,32,22,17,12,12,12,37,25,55,-20,44,0,61,-10]} 1. d4 {[%emt 0:00:04]} d5 {[%emt 0:00:20]} 2. c4 {[%emt 0:00:09]} e6 {[%emt 0:00:34]} 3. Nf3 {[%emt 0:00:09]} Nf6 {[%emt 0:00:24]} 4. g3 {[%emt 0:00:27]} Be7 {[%emt 0:01:54]} 5. Bg2 {[%emt 0:00:10]} O-O {[%emt 0:00:43]} 6. O-O {[%emt 0:00:12]} dxc4 {[%emt 0:00:32]} 7. Qc2 {[%emt 0:00:49]} a6 {[%emt 0:00:39]} 8. a4 {[%emt 0:00:36]} Bd7 {[%emt 0:01:06]} 9. Qxc4 {[%emt 0:00:12]} Bc6 {[%emt 0:00:49]} 10. Bg5 {[%emt 0:01:29]} Nbd7 {[%emt 0:01:47]} 11. Nc3 {[%emt 0:00:48]} h6 {[%emt 0:01:34]} 12. Bxf6 {[%emt 0:00:08]} Nxf6 {[%emt 0:00:13]} 13. a5 {[%emt 0:00:54]} Qd6 {[%emt 0:01:16]} 14. Rfd1 {[%emt 0:01:51] The position is equal.} Rfd8 {[%emt 0:03:59]} 15. e3 {[%emt 0:01:42]} Rab8 {[%emt 0:02:13]} 16. Qe2 {[%emt 0:03:14]} Bf8 {[%emt 0:02:15]} 17. h4 {[%emt 0:01:18]} Qe7 {[%emt 0:02:23]} 18. Bf1 {[%emt 0:01:49]} Be8 {[%emt 0:07:30]} 19. e4 {[%emt 0:05:24]} Rbc8 {[%emt 0:13:53]} 20. d5 {[%emt 0:12:47]} e5 {[%emt 0:02:43]} 21. Bh3 {[%emt 0:09:14]} Rb8 {[%emt 0:00:56]} 22. Nd2 {[%emt 0:15:16][%cal Bf3d2,Bd2c4,Bc4e3][%mdl 32]} c6 {[%emt 0:09:48][%cal Rc6d5]} 23. Nc4 {[%emt 0:04:48] [#] d6 would now be deadly.} Qc7 {[%emt 0:01:42]} 24. Qd3 {[%emt 0:12:28] Strongly threatening d6.} cxd5 {[%emt 0:02:17]} 25. exd5 {[%emt 0:01:02]} Bb5 {[%emt 0:07:38]} 26. Nxb5 {[%emt 0:05:19]} axb5 {[%emt 0:00:11]} 27. Ne3 {[%emt 0:02:34]} Qc5 {[%emt 0:01:27]} 28. Bf1 {[%emt 0:06:17][%cal Oa1c1]} b4 {[%emt 0:06:02]} 29. Qb3 {[%emt 0:04:16]} Rbc8 {[%emt 0:04:55]} 30. a6 {[%emt 0:02:49]} bxa6 {[%emt 0:01:10]} 31. Rxa6 {[%emt 0:00:16]} Ne4 {[%emt 0:02:23]} 32. Bg2 {[%emt 0:01:19]} Qb5 {[%emt 0:02:45] [#] And now ...Nc5 would win.} 33. Bf1 {[%emt 0:01:53]} (33. Rc6 $14 Nd6 34. Bf1) 33... Qc5 {[%emt 0:02:15]} ({Black should play} 33... Qd7 $11 34. Ra5 Nc5) 34. Bg2 {[%emt 0:00:50]} Qb5 {[%emt 0:00:06] White must now prevent ...Nc5.} 35. Bf1 {[%emt 0:00:12] Weighted Error Value: White=0.11 (very precise) /Black=0.09 (flawless) .  Mistake:       	White=2     	Black=1      Inaccurate:     	---       	Black=2      OK:         	White=8     	Black=10} (35. Rc6 $14 Nd6 36. Bf1) 1/2-1/2

[Event "45th FIDE Olympiad 2024"]
[Site "Budapest"]
[Date "2024.09.13"]
[Round "3.63"]
[White "Jones, Rupert"]
[Black "Brookfield, Toby"]
[Result "0-1"]
[ECO "B26"]
[WhiteElo "1849"]
[BlackElo "1872"]
[Annotator "NA RC"]
[PlyCount "72"]
[EventDate "2024.09.05"]
[EventType "team-tourn"]
[EventCountry "HUN"]
[SourceTitle "playchess.com"]
[Source "ChessBase"]
[SourceQuality "1"]
[WhiteTeam "Papua New Guinea"]
[BlackTeam "Guernsey"]
[WhiteTeamCountry "PNG"]
[TimeControl "40/5400+30:1800+30"]

1. e4 c5 2. Nc3 d6 3. g3 Nc6 4. Bg2 g6 5. d3 Bg7 6. Be3 Rb8 7. Qd2 b5 8. Nge2 b4 9. Nd1 Qa5 10. O-O Ne5 11. f4 Ng4 12. Qc1 Nxe3 13. Nxe3 Qc7 14. c3 Nf6 15. Qc2 O-O 16. h3 Bd7 17. cxb4 Rxb4 18. a3 Ba4 19. Qd2 Rbb8 20. Rac1 e6 21. b4 Nd7 22. d4 Rfc8 23. dxc5 dxc5 24. e5 Bc6 25. Bxc6 Qxc6 26. Nc4 Rd8 27. Nd6 Qb6 28. b5 Nxe5 29. Qe3 Qxd6 30. fxe5 Qxe5 31. Qxe5 Bxe5 32. Rxc5 Bd6 33. Rc6 Rxb5 34. Ra6 Bc5+ 35. Kh1 Rb3 36. a4 Rd2 0-1

[Event "45th FIDE Olympiad 2024"]
[Site "Budapest"]
[Date "2024.09.13"]
[Round "3.64"]
[White "Grigoryan, Karen H."]
[Black "Di Berardino, Diego Rafael"]
[Result "1-0"]
[ECO "B90"]
[WhiteElo "2569"]
[BlackElo "2472"]
[Annotator "RC"]
[PlyCount "81"]
[EventDate "2024.09.05"]
[EventType "team-tourn"]
[EventCountry "HUN"]
[SourceTitle "playchess.com"]
[Source "ChessBase"]
[SourceQuality "1"]
[WhiteTeam "Armenia"]
[BlackTeam "Brazil"]
[WhiteTeamCountry "ARM"]
[BlackTeamCountry "BRA"]
[TimeControl "40/5400+30:1800+30"]

1. Nf3 {[%emt 0:00:12]} c5 {[%emt 0:00:28]} 2. e4 {[%emt 0:01:10]} d6 {[%emt 0:00:22]} 3. d4 {[%emt 0:00:14]} cxd4 {[%emt 0:00:06]} 4. Nxd4 {[%emt 0:00:05]} Nf6 {[%emt 0:00:07]} 5. Nc3 {[%emt 0:00:07]} a6 {[%emt 0:00:20]} 6. Be3 {[%emt 0:02:23]} e5 {[%emt 0:01:32]} 7. Nb3 {[%emt 0:00:57]} Be7 {[%emt 0:00:55]} 8. h3 {[%emt 0:00:27]} Be6 {[%emt 0:14:41]} 9. Qf3 {[%emt 0:01:57]} Nbd7 {[%emt 0:03:28]} 10. O-O-O {[%emt 0:03:08]} Rc8 {[%emt 0:05:50]} 11. Nd5 {[%emt 0:01:53]} Bxd5 {[%emt 0:05:35]} 12. exd5 {[%emt 0:00:12]} O-O {[%emt 0:09:47]} 13. g4 {[%emt 0:11:16]} Nb6 {[%emt 0:03:15]} 14. g5 {[%emt 0:04:30]} Qc7 {[%emt 0:04:18]} 15. c3 {[%emt 0:04:14]} Nfd7 {[%emt 0:02:55]} 16. Qg4 {[%emt 0:03:25]} a5 {[%emt 0:07:22]} 17. Nxa5 {[%emt 0:06:36]} Ra8 {[%emt 0:01:37]} 18. Qb4 {[%emt 0:00:26]} Nc5 {[%emt 0:01:57]} 19. Kb1 {[%emt 0:03:19]} Nbd7 {[%emt 0:07:54]} 20. Nb3 {[%emt 0:03:49]} Ra4 {[%emt 0:00:35]} 21. Qb5 {[%emt 0:00:42]} Rfa8 {[%emt 0:00:19]} 22. Nxc5 {[%emt 0:05:46]} Nxc5 {[%emt 0:01:44]} 23. Bxc5 {[%emt 0:01:37]} dxc5 {[%emt 0:00:07]} 24. d6 {[%emt 0:02:01]} Bxd6 {[%emt 0:00:58]} 25. a3 {[%emt 0:05:44]} c4 {[%emt 0:10:27]} 26. Bg2 {[%emt 0:05:29]} R4a7 {[%emt 0:12:43]} 27. Kc2 {[%emt 0:10:25]} g6 {[%emt 0:01:04]} 28. Rhe1 {[%emt 0:03:48]} Qe7 {[%emt 0:01:58]} 29. f4 {[%emt 0:01:41]} Qe6 {[%emt 0:01:46]} 30. Qd5 {[%emt 0:00:28]} Qxd5 {[%emt 0:00:46]} 31. Rxd5 {[%emt 0:00:07]} Bc7 {[%emt 0:00:28]} 32. Rd7 {[%emt 0:01:09]} Rc8 {[%emt 0:00:31]} 33. fxe5 {[%emt 0:00:26]} b5 {[%emt 0:00:14]} 34. Bd5 {[%emt 0:01:34]} Rd8 {[%emt 0:00:26]} 35. e6 {[%emt 0:01:05]} fxe6 {[%emt 0:00:52]} 36. Rxe6 {[%emt 0:00:37]} Kf8 {[%emt 0:00:25]} 37. Ree7 {[%emt 0:05:15]} Rxd7 {[%emt 0:00:05]} 38. Rxd7 {[%emt 0:00:05]} Bb6 {[%emt 0:00:40]} 39. Rxa7 {[%emt 0:00:22]} Bxa7 {[%emt 0:00:03]} 40. Bc6 {[%emt 0:00:07]} Be3 {[%emt 0:00:44]} 41. Bxb5 {[%emt 0:30:07]} 1-0

[Event "45th FIDE Olympiad 2024"]
[Site "Budapest"]
[Date "2024.09.13"]
[Round "3.65"]
[White "Deac, Bogdan-Daniel"]
[Black "Grandelius, Nils"]
[Result "1/2-1/2"]
[ECO "D04"]
[WhiteElo "2680"]
[BlackElo "2653"]
[Annotator "TA"]
[PlyCount "53"]
[EventDate "2024.09.05"]
[EventType "team-tourn"]
[EventCountry "HUN"]
[SourceTitle "playchess.com"]
[Source "ChessBase"]
[SourceQuality "1"]
[WhiteTeam "Romania"]
[BlackTeam "Sweden"]
[WhiteTeamCountry "ROU"]
[BlackTeamCountry "SWE"]
[TimeControl "40/5400+30:1800+30"]

{[%evp 9,53,0,0,-7,8,-15,8,0,0,0,0,0,0,12,10,0,0,0,0,0,0,0,0,0,0,0,11,5,8,5,13,6,6,0,0,0,0,0,0,0,0,0,0,0,0,0]} 1. d4 d5 2. Nf3 c5 3. e3 Nf6 4. Be2 e6 5. Nbd2 Nc6 {The position is equal.} 6. c3 Qc7 7. Qc2 Be7 8. b3 cxd4 9. exd4 O-O 10. Bb2 e5 11. dxe5 Nxe5 12. Nxe5 Qxe5 13. Nf3 Qe4 14. Qxe4 dxe4 15. Nd4 Bc5 16. Rd1 Rd8 17. h3 Bxd4 18. Rxd4 Rxd4 19. cxd4 Be6 20. Kd2 Rc8 21. Re1 e3+ 22. fxe3 {[#] Hoping for Bd3.} Ne4+ 23. Kd1 Nf2+ 24. Kd2 {Bf3 would now be deadly.} Ne4+ 25. Kd1 Nf2+ 26. Kd2 Ne4+ 27. Kd1 {Not much happened in this game.   Weighted Error Value: White=0.02 (flawless) /Black=0.03 (flawless) .  OK:         	White=9     	Black=12} 1/2-1/2

[Event "45th FIDE Olympiad 2024"]
[Site "Budapest"]
[Date "2024.09.13"]
[Round "3.65"]
[White "De Mey, Juan Pablo"]
[Black "Kudakwashe, Chinake"]
[Result "1/2-1/2"]
[ECO "B12"]
[WhiteElo "1992"]
[BlackElo "1859"]
[Annotator "NA RC"]
[PlyCount "134"]
[EventDate "2024.09.05"]
[EventType "team-tourn"]
[EventCountry "HUN"]
[SourceTitle "playchess.com"]
[Source "ChessBase"]
[SourceQuality "1"]
[WhiteTeam "Aruba"]
[BlackTeam "Cayman Islands"]
[WhiteTeamCountry "ARN"]
[BlackTeamCountry "CAY"]
[TimeControl "40/5400+30:1800+30"]

1. e4 c6 2. d4 d5 3. e5 c5 4. dxc5 Nc6 5. a3 a5 6. Bb5 e6 7. Be3 Nge7 8. c3 Bd7 9. Bxc6 Bxc6 10. Bd4 a4 11. Ne2 Nf5 12. O-O Be7 13. Ng3 Nxd4 14. cxd4 b6 15. Qg4 g6 16. cxb6 h5 17. Qe2 h4 18. Rc1 Qxb6 19. Nf1 O-O 20. Qd2 Rab8 21. g3 Rfc8 22. Rc2 Kg7 23. Ne3 hxg3 24. hxg3 Rh8 25. Nc3 Rh5 26. Ng4 Rbh8 27. Rac1 Qb3 28. Kg2 Bg5 29. f4 Bd8 30. Nd1 Bb5 31. Ndf2 Bc4 32. Qe3 Qb5 33. Qf3 Bb6 34. Qe3 Ba5 35. Qf3 Rb8 36. Nf6 Rhh8 37. f5 exf5 38. g4 Rh4 39. gxf5 Rbh8 40. N6g4 gxf5 41. Qxf5 Bd8 42. e6 Qb7 43. exf7 Qe7 44. Rxc4 dxc4 45. Rxc4 Qb7+ 46. d5 Qxb2 47. Rc6 Kf8 48. Re6 Be7 49. Rc6 Qe2 50. Rc8+ Kg7 51. Rxh8 Rxg4+ 52. Qxg4+ Qxg4+ 53. Nxg4 Kxh8 54. Kf3 Bxa3 55. Ke2 Bb4 56. Kd1 Kg7 57. Ne5 Bc3 58. Nc4 Kxf7 59. Kc2 Bb4 60. Nb6 a3 61. Kb3 Bc5 62. Nc4 Ke7 63. Ka2 Bb4 64. Kb3 Bc5 65. Nxa3 Bxa3 66. Kxa3 Kd6 67. Kb3 Kxd5 1/2-1/2

[Event "45th FIDE Olympiad 2024"]
[Site "Budapest"]
[Date "2024.09.13"]
[Round "3.66"]
[White "Blomqvist, Erik"]
[Black "Shevchenko, Kirill"]
[Result "1-0"]
[ECO "B67"]
[WhiteElo "2491"]
[BlackElo "2673"]
[Annotator "TA"]
[PlyCount "69"]
[EventDate "2024.09.05"]
[EventType "team-tourn"]
[EventCountry "HUN"]
[SourceTitle "playchess.com"]
[Source "ChessBase"]
[SourceQuality "1"]
[WhiteTeam "Sweden"]
[BlackTeam "Romania"]
[WhiteTeamCountry "SWE"]
[BlackTeamCountry "ROU"]
[TimeControl "40/5400+30:1800+30"]

{[%evp 17,69,11,16,12,24,13,27,15,41,9,40,40,54,50,58,52,70,42,81,86,147,149,143,135,891,904,1013,1043,1065,1066,2514,2131,1399,1050,1050,538,540,530,599,587,662,675,679,671,750,729,748,727,727,693,5127,4918,29997,-70]} 1. e4 c5 2. Nc3 Nc6 3. Nf3 d6 4. d4 cxd4 5. Nxd4 Nf6 6. Bg5 e6 7. Qd2 a6 8. O-O-O Bd7 9. Nxc6 Bxc6 10. f3 Be7 11. Kb1 Qc7 12. h4 {White has an edge.} h6 13. Be3 b5 (13... d5 $5) 14. Ne2 Nd7 15. Nd4 Bb7 {[#]} 16. c4 $1 bxc4 {[#]} 17. Bxc4 $1 O-O {[#]} (17... Qxc4 $2 18. Rc1 Qa4 19. b3 $18) (17... d5 18. Bb3) 18. Rc1 $1 {[%cal Od4e6] Nxe6! would now be deadly.} Qd8 {[#]} (18... Nc5 $142) 19. Bxh6 $1 $16 {[%mdl 512] White has more active pieces.} gxh6 20. Qxh6 Bf6 $2 {[%mdl 8192] [#] Dodges Rh3. Black cannot hold the game after this.} (20... Qa5 $16) 21. Nxe6 $1 $18 {[%mdl 512] White threatens Ng5 and mate.} Qb6 (21... Rb8 22. b3) 22. e5 (22. Nxf8 $2 Qxb2#) 22... Bxe5 {[#]} 23. Rc2 $1 Rab8 (23... fxe6 24. Qxe6+) 24. Qg5+ ({Weaker is} 24. Nxf8 d5 25. Qxb6 (25. Nxd7 $2 {perishes.} Qxh6 26. Bb3 Re8 $19) 25... Nxb6 $16) 24... Kh8 25. Qh5+ Kg8 26. Nxf8 Rxf8 27. Qg4+ Bg7 28. Qxd7 Bc8 {[%cal Bb7c8,Bc8e6,Be6g8,Bg8d5][%mdl 32] [#]} 29. Bxf7+ $1 Kh8 30. Qc7 (30. Rxc8 $2 Qxb2#) 30... Qd4 31. Bg6 Be6 32. h5 {White wants to mate with h6.} Bg8 33. Qb7 {[%cal Oh5h6] aiming for h6!} Bf6 34. Rc7 {[%cal Oc7h7] Rh7+! would kill now.} Bd5 35. Rh7+ {[%mdl 32768] Weighted Error Value: White=0.53/Black=0.72.  Loses game:     	---       	Black=1      Mistake:       	---       	Black=1      Inaccurate:     	White=1     	Black=3      OK:         	White=4     	Black=1      Strong:       	White=1     	---        Brilliant:      	White=5     	---       . Loss on time!?} 1-0